Cogmind - Beta 13 @@@ ROGUE MODE // 2024.04.03 @ 19:31:55 Player: lilya Result: Destroyed by Y-45 Defender with Heavy Assault Rifle Performance ------------- Evolutions (2) 1000 Regions Visited (5) 1000 Robots Destroyed (7) 35 Value Destroyed (107) 107 Prototype IDs (23) 460 Alien Tech Used (0) 0 Bonus (300) 300 TOTAL SCORE: 2902 Bonus ------- Aligned with FarCom 300 Cogmind --------- Core Integrity 0/550 Matter 295/300 Energy 100/100 System Corruption 0% Temperature Cool (0) Movement Core (200) Ox3 Location -8/Materials Parts ------- > --- POWER (1) -------- (None) > --- PROPULSION (4) --- (None) > --- UTILITY (3) ------ Medium Storage Unit Hacking Suite > --- WEAPON (3) ------- (None) > --- INVENTORY (10) --- Small Storage Unit Improved Signal Interpreter Terrain Scanner Improved Utility Shielding Shield Generator Shield Generator System Shield Field Lobotomy Kit (5) Peak State ------------ > --- POWER ------------ Light Ion Engine > --- PROPULSION ------- Carbon-fiber Leg Combat Airjet Combat Airjet > --- UTILITY ---------- Structural Scanner Terrain Scanner Hardened Light Armor Plating > --- WEAPON ----------- Medium Laser Light Assault Rifle Field Lobotomy Kit > --- INVENTORY -------- Wheel Datajack [Rating: 30] Favorites ----------- Power Light Ion Engine Engine Light Ion Engine Propulsion Combat Airjet Leg Carbon-fiber Leg Wheel Wheel Hover Unit Combat Airjet Flight Unit Flight Unit Utility Structural Scanner Device Structural Scanner Storage Small Storage Unit Processor Visual Processing Unit Hackware Hacking Suite Protection Hardened Light Armor Plating Weapon Medium Laser Energy Gun Medium Laser Ballistic Gun Light Assault Rifle Special Weapon Field Lobotomy Kit Special Melee Weapon Datajack Build | -11 -10 -10 -10 -9 -8 ------- Run | Yrd Mat Min Exi Min Mat Slots Evolved 4 | . . . . . 4 Power . | . . . . . . Propulsion 2 | . . . . . 2 Utility 1 | . . . . . 1 Weapon 1 | . . . . . 1 Parts Attached 41 | 8 5 9 2 4 13 Power 4 | 1 1 1 . . 1 Engine 4 | 1 1 1 . . 1 Core . | . . . . . . Reactor . | . . . . . . Propulsion 14 | 4 2 4 . . 4 Treads . | . . . . . . Leg 2 | . . . . . 2 Wheel 7 | 4 2 . . . 1 Hover 3 | . . 2 . . 1 Flight 2 | . . 2 . . . Utility 12 | 1 2 1 2 . 6 Device 3 | . 1 1 1 . . Storage 4 | 1 . . 1 . 2 Processor 2 | . 1 . . . 1 Hackware 1 | . . . . . 1 Protection 2 | . . . . . 2 Artifact . | . . . . . . Weapon 11 | 2 . 3 . 4 2 Energy Gun 2 | 2 . . . . . Energy Cannon . | . . . . . . Ballistic Gun 5 | . . 2 . 3 . Ballistic Cannon . | . . . . . . Launcher . | . . . . . . Special Weapon 2 | . . . . 1 1 Impact Weapon . | . . . . . . Slashing Weapon . | . . . . . . Piercing Weapon . | . . . . . . Special Melee Weapon 2 | . . 1 . . 1 Unidentified Prototypes . | . . . . . . Parts Lost 10 | . . . . . 10 Power 2 | . . . . . 2 Propulsion 4 | . . . . . 4 Utility 1 | . . . . . 1 Weapon 3 | . . . . . 3 Highest Loss Streak 9 | . . . . . 9 To Critical Strikes . | . . . . . . Average Slot Usage (%) 92 | . 90 98 100 98 82 Engine 12 | . 14 14 14 14 7 Leg 2 | . . . . . 6 Wheel 3 | . 19 1 . . . Hover 18 | . . 16 28 28 16 Flight 1 | . . 10 . . . Device 18 | . 3 25 27 28 9 Storage 4 | . 14 1 . . 8 Processor 1 | . 9 . . . . Hackware 2 | . . . . . 6 Energy Gun 14 | . 28 15 14 14 8 Ballistic Gun 9 | . . 12 14 12 8 Special Melee Weapon 2 | . . . . . 6 Naked Turns . | . . . . . . Heaviest Build 25 | 11 16 16 8 8 25 Greatest Support 24 | 10 20 24 24 24 24 Greatest Overweight (x) 3 | 1 1 3 . . 3 Average Overweight (x) . | . . . . . . Largest Inventory Capacity 10 | 8 8 8 5 5 10 Average Capacity 6 | 7 8 5 5 5 7 Most Carried 8 | 8 8 8 5 5 8 Average Carried 6 | 5 7 5 4 5 7 Final Capacity 10 | 8 8 5 5 5 10 Final Carried 8 | 6 8 5 5 5 8 Class Distribution -------------------- 89% | Mutant 5% | Scout 4% | Skirmisher Dominant Class ---------------- Mutant | -10/Materials Mutant | -10/Mines Mutant | -10/Exiles Scout | -9/Mines Mutant | -8/Materials Resources | -11 -10 -10 -10 -9 -8 ----------- Run | Yrd Mat Min Exi Min Mat Matter Collected 564 | 205 48 167 . 33 111 Remotely . | . . . . . . Salvage Created 135 | . 48 45 . 42 . Parts 11 | . 2 6 . 3 . Haulers Intercepted . | . . . . . . Recyclers Shooed . | . . . . . . Parts Field Recycled . | . . . . . . Retrieved Matter . | . . . . . . Parts Self-Destructed . | . . . . . . Prevented . | . . . . . . Kills | -11 -10 -10 -10 -9 -8 ------- Run | Yrd Mat Min Exi Min Mat Combat Hostiles Destroyed 7 | . 1 3 . 3 . Guns 7 | . 1 3 . 3 . Classes Destroyed 2 | . 1 1 . . . Swarmer 6 | . . 3 . 3 . Grunt 1 | . 1 . . . . Best Kill Streak 3 | . 1 3 . 3 . Combat Bots Only 3 | . 1 3 . 3 . Max Kills in Single Turn 2 | . 1 2 . 1 . Gunslinging 1 | . . 1 . . . Exploded . | . . . . . . Melee . | . . . . . . Uniques/NPCs Destroyed . | . . . . . . Combat | -11 -10 -10 -10 -9 -8 -------- Run | Yrd Mat Min Exi Min Mat Hostile Shots Fired 174 | . 12 10 . 27 125 Missed 57 | . 5 4 . 10 38 Damage Taken 1563 | . 91 48 . 136 1288 Core 595 | . 17 24 . . 554 Absorbed by Shields . | . . . . . . Regen/Repaired (Parts) 38 | . . . . . 38 Core Remaining (%) 91 | 100 . . . 83 . Volleys Fired 24 | . 4 3 . 8 9 Largest 2 | . 2 2 . 2 2 Hottest 90 | . 90 90 . 70 70 Shots Fired 48 | . 8 6 . 16 18 Gun 48 | . 8 6 . 16 18 Cannon . | . . . . . . Launcher . | . . . . . . Special . | . . . . . . Kinetic 17 | . . . . 8 9 Thermal 31 | . 8 6 . 8 9 Explosive . | . . . . . . Electromagnetic . | . . . . . . Robot Hit Streak 8 | . 4 2 . 4 8 Robot Miss Streak 3 | . 1 3 . 2 1 Penetration Max . | . . . . . . Secondary Targets 3 | . . 1 . 2 . Max Gunslinging Chain 1 | . . 1 . 1 . Shots Hit Robots 36 | . 6 3 . 10 17 Core Hits 13 | . 3 3 . 5 2 Critical Kills . | . . . . . . Critical Parts Destroyed . | . . . . . . Critical Strikes 2 | . . 1 . . 1 Burn 2 | . . 1 . . 1 Melee Attacks 3 | . . . . . 3 Impact . | . . . . . . Slashing . | . . . . . . Piercing . | . . . . . . Sneak Attacks 1 | . . . . . 1 Combat Hostiles . | . . . . . . Follow-up Attacks . | . . . . . . Damage Inflicted 368 | . 70 47 . 119 132 Guns 368 | . 70 47 . 119 132 Cannons . | . . . . . . Explosions . | . . . . . . Melee . | . . . . . . Ramming . | . . . . . . Kinetic 92 | . . . . 46 46 Thermal 276 | . 70 47 . 73 86 Explosive . | . . . . . . Electromagnetic . | . . . . . . Impact . | . . . . . . Slashing . | . . . . . . Piercing . | . . . . . . Highest Corruption . | . . . . . . Average Corruption . | . . . . . . Corruption Purged . | . . . . . . Corruption Blocked . | . . . . . . Overload Shots . | . . . . . . Overflow Damage . | . . . . . . Projectiles . | . . . . . . Explosions . | . . . . . . Melee . | . . . . . . Knockbacks . | . . . . . . Impact . | . . . . . . Kinetic . | . . . . . . Secondary . | . . . . . . Self-Inflicted Damage . | . . . . . . Shots . | . . . . . . Rammed . | . . . . . . Targets Rammed . | . . . . . . Kicked . | . . . . . . Crushed . | . . . . . . Highest Temperature 140 | . 96 99 . 140 31 Average Temperature 49 | . 44 50 . 77 11 Received Heat Transfer 153 | . 51 . . . 102 Siege Activations . | . . . . . . Robots Corrupted . | . . . . . . Combat Hostiles . | . . . . . . Parts Fried . | . . . . . . Impact Corruptions . | . . . . . . Robots Melted . | . . . . . . Combat Hostiles . | . . . . . . Parts Melted 1 | . . . . 1 . Heat Transferred 939 | . 186 198 . 222 333 Parts Sabotaged . | . . . . . . Parts Stolen . | . . . . . . Parts Stripped . | . . . . . . Power Chain Reactions . | . . . . . . Alert | -11 -10 -10 -10 -9 -8 ------- Run | Yrd Mat Min Exi Min Mat Peak Influence 96 | . 30 96 . 70 60 Initial 27 | . . 11 . . 27 Average 38 | . 4 94 . 58 29 Maximum Alert Level . | . . . . . . Low Security (%) 100 | 100 100 100 . 100 100 Level 1 . | . . . . . . Level 2 . | . . . . . . Level 3 . | . . . . . . Level 4 . | . . . . . . Level 5 . | . . . . . . High Security . | . . . . . . Max Security . | . . . . . . Squads Dispatched 1 | . 1 . . . . Investigation 1 | . 1 . . . . Extermination . | . . . . . . Reinforcement . | . . . . . . Assault . | . . . . . . Garrison . | . . . . . . Intercept . | . . . . . . Searches Triggered . | . . . . . . Construction Impeded . | . . . . . . Haulers Reinforced . | . . . . . . Active Scanning Responses . | . . . . . . Cargo Convoy Interrupts . | . . . . . . Stealth | -11 -10 -10 -10 -9 -8 --------- Run | Yrd Mat Min Exi Min Mat Distress Signals . | . . . . . . Communications Jammed . | . . . . . . Distress Signals . | . . . . . . Times Spotted 17 | . 3 3 . 3 8 Peak Tracking Total 6 | . 3 3 . 3 6 Tactical Retreats . | . . . . . . Traps | -11 -10 -10 -10 -9 -8 ------- Run | Yrd Mat Min Exi Min Mat Traps Triggered 1 | . 1 . . . . Indirectly . | . . . . . . Trap Hack Attempts . | . . . . . . Triggered . | . . . . . . Disarmed . | . . . . . . Reprogrammed . | . . . . . . Reused . | . . . . . . Traps Extracted . | . . . . . . Installed . | . . . . . . Triggered . | . . . . . . Most Traps Carried 1 | . . 1 1 . . Machines | -11 -10 -10 -10 -9 -8 ---------- Run | Yrd Mat Min Exi Min Mat Machines Disabled . | . . . . . . Max in Single Turn . | . . . . . . Machines Repaired . | . . . . . . Machines Dismantled . | . . . . . . Machines Sabotaged . | . . . . . . Overloaded Fab Kills . | . . . . . . Hacking | -11 -10 -10 -10 -9 -8 --------- Run | Yrd Mat Min Exi Min Mat Machines Accessed 5 | . . . 3 . 2 Terminals 1 | . . . . . 1 Fabricators . | . . . . . . Repair Stations 1 | . . . . . 1 Recycling Units . | . . . . . . Scanalyzers . | . . . . . . Garrison Access . | . . . . . . Total Hacks 38 | . . . 33 . 5 Successful 36 | . . . 33 . 3 Failed 2 | . . . . . 2 Catastrophic . | . . . . . . Database Lockouts . | . . . . . . Manual 1 | . . . 1 . . Terminals 2 | . . . . . 2 Fabricators . | . . . . . . Repair Stations 3 | . . . . . 3 Recycling Units . | . . . . . . Scanalyzers . | . . . . . . Garrison Access . | . . . . . . Terminal Hacks 34 | . . . 33 . 1 Record 32 | . . . 32 . . Branch Access Points 1 | . . . . . 1 Derelict Proto ID Bank 1 | . . . 1 . . Fabricator Hacks . | . . . . . . Repair Station Hacks 2 | . . . . . 2 Scan Component 1 | . . . . . 1 Repair 1 | . . . . . 1 Recycling Unit Hacks . | . . . . . . Scanalyzer . | . . . . . . Garrison Access Hacks . | . . . . . . Unauthorized Hacks . | . . . . . . Terminals . | . . . . . . Fabricators . | . . . . . . Repair Stations . | . . . . . . Recycling Units . | . . . . . . Scanalyzers . | . . . . . . Garrison Access . | . . . . . . Data Cores Recovered . | . . . . . . Used . | . . . . . . Hacking Detections 1 | . . . . . 1 Full Trace Events . | . . . . . . Feedback Events . | . . . . . . Feedback Blocked . | . . . . . . Robot Schematics Acquired . | . . . . . . Robots Built . | . . . . . . Authchips . | . . . . . . Time . | . . . . . . Total Robot Build Rating . | . . . . . . Part Schematics Acquired . | . . . . . . Parts Built . | . . . . . . Authchips . | . . . . . . Time . | . . . . . . Total Part Build Rating . | . . . . . . Parts Repaired 1 | . . . . . 1 Time 50 | . . . . . 50 Parts Recycled . | . . . . . . Recycled Matter . | . . . . . . Retrieved Matter . | . . . . . . Retrieved Components . | . . . . . . Parts Scanalyzed . | . . . . . . Part Schematics Acquired . | . . . . . . Parts Damaged . | . . . . . . Bothacking | -11 -10 -10 -10 -9 -8 ------------ Run | Yrd Mat Min Exi Min Mat Used RIF Installer . | . . . . . . Robots Hacked 2 | . . . . . 2 Non-combat 1 | . . . . . 1 Combat 1 | . . . . . 1 Robot Hacks Applied 2 | . . . . . 2 parse_system 2 | . . . . . 2 Relay Couplers Released . | . . . . . . Fabnet Peak Effective % . | . . . . . . Robots Rewired . | . . . . . . Allies Hacked . | . . . . . . Hacks Repelled . | . . . . . . Allies | -11 -10 -10 -10 -9 -8 -------- Run | Yrd Mat Min Exi Min Mat Total Allies . | . . . . . . Largest Group . | . . . . . . Highest-Rated Group . | . . . . . . Highest-Rated Ally . | . . . . . . Total Orders . | . . . . . . Ally Attacks . | . . . . . . Total Damage . | . . . . . . Kills . | . . . . . . Allies Corrupted . | . . . . . . Allies Melted . | . . . . . . Intel | -11 -10 -10 -10 -9 -8 ------- Run | Yrd Mat Min Exi Min Mat Robot Analysis Total . | . . . . . . Derelict Logs Recovered 1 | . . 1 . . . Drone Launches . | . . . . . . Drone Recoveries . | . . . . . . Exploration | -11 -10 -10 -10 -9 -8 ------------- Run | Yrd Mat Min Exi Min Mat Turns Passed 1602 | 59 233 227 512 103 468 Spaces Moved 1606 | 50 202 248 655 96 355 Core 15 | 11 . . . . 4 Treads . | . . . . . . Legs . | . . . . . . Wheels 255 | 39 202 1 . . 13 Hover 1172 | . . 83 655 96 338 Flight 164 | . . 164 . . . Fastest Speed 37 | 50 80 37 77 77 77 Average Speed 77 | 74 89 53 77 77 88 Slowest Speed 280 | 95 95 280 77 77 200 Overloaded Moves . | . . . . . . Propulsion Burnouts . | . . . . . . Robots Hopped . | . . . . . . Cave-ins Triggered . | . . . . . . Exploration Rate (%) 39 | 4 31 59 83 27 33 Regions Visited 5 Branch Regions 3 Pre-discovered Areas 2 | . . 1 1 . . Known Exits Taken . | . . . . . . Unknown Exits Taken 5 | 1 1 1 1 1 . Scrap Searched 1 | . . . . 1 . Spaces Dug . | . . . . . . Terrain Destroyed . | . . . . . . Melee . | . . . . . . Projectile . | . . . . . . AOE . | . . . . . . Terrain Rammed . | . . . . . . Walls Destroyed . | . . . . . . Machines Disabled . | . . . . . . Actions | -11 -10 -10 -10 -9 -8 --------- Run | Yrd Mat Min Exi Min Mat Total 1922 | 73 248 338 663 109 491 Wait 186 | 1 22 68 1 . 94 Move 1601 | 49 201 247 654 95 355 Hop . | . . . . . . Pick Up 36 | 12 10 1 2 . 11 Fast Attach 10 | . . 5 2 1 2 Attach 20 | 8 3 2 . . 7 Detach 5 | 2 . 1 . . 2 Swap 11 | . 2 2 . 3 4 Drop 26 | 1 6 9 4 2 4 Fire 24 | . 4 3 . 8 9 Melee 3 | . . . . . 3 Ram . | . . . . . . Kick . | . . . . . . Crush . | . . . . . . Escape Stasis . | . . . . . . Rewire . | . . . . . . Trap . | . . . . . . Miscellaneous . | . . . . . . Route ------- -11/Scrapyard -10/Materials -10/Mines -10/Exiles (discovered 2 exits: [*Min x2]) -9/Mines -8/Materials (discovered 1 exit: [*Fac]) History --------- Turn | Location | Event 26 | -11/Scrapyard | Discovered new exit (range 15) 60 | -11/Scrapyard | Entered Materials 182 | -10/Materials | Discovered new exit (range 7) 293 | -10/Materials | Entered Mines 337 | -10/Mines | Found a hidden stash of uninstalled traps 351 | -10/Mines | Assembled infested the area 351 | -10/Mines | Build established: Mutant 387 | -10/Mines | Met 8R-AWN 448 | -10/Mines | Learned location of Zion (-7) 517 | -10/Mines | Discovered new exit (range 5) 520 | -10/Mines | Entered Exiles 534 | -10/Exiles | Discovered new exit (range 15) 554 | -10/Exiles | Welcomed by 8R-AWN 568 | -10/Exiles | Met EX-HEX 615 | -10/Exiles | Met EX-DEC 636 | -10/Exiles | Visited The Gauntlet 782 | -10/Exiles | Discovered new exit (range 12) 834 | -10/Exiles | Met EX-BIN 927 | -10/Exiles | Aligned with FarCom system 927 | -10/Exiles | Given EX-Vault access code 947 | -10/Exiles | Opened EX-Vault 951 | -10/Exiles | Found Field Lobotomy Kit 969 | -10/Exiles | Warned to stay clear of 0b10 Research branches 1003 | -10/Exiles | Learned about 8R-AWN's background 1032 | -10/Exiles | Left Exiles lab with Field Lobotomy Kit 1032 | -10/Exiles | Entered Mines 1095 | -9/Mines | Discovered new exit (range 5) 1135 | -9/Mines | Entered Materials 1135 | -8/Materials | Evolved 4 slots: Propulsion x2, Utility x1, Weapon x1 1375 | -8/Materials | Repaired Cmb. Airjet 1574 | -8/Materials | Core integrity fell below 50% 1586 | -8/Materials | Discovered new exit (range 15) 1596 | -8/Materials | Core integrity fell below 20% 1603 | -8/Materials | Destroyed by Y-45 Defender with Heavy Assault Rifle Last Messages --------------- K-01 Serf collects debris. U-05 Engineer lays Concrete. U-05 Engineer builds a Wall. U-05 Engineer lays Concrete. Slug penetrates Wall. U-05 Engineer builds a Wall. U-05 Engineer lays Concrete. U-05 Engineer builds a Wall. U-05 Engineer lays Concrete. U-05 Engineer builds a Wall. EXIT=FOUND U-05 Engineer builds a Wall. U-05 Engineer lays Concrete. Acquired Imp. Signal Interpreter. Wheel destroyed. Slug penetrates Terminal. Terminal disabled. Structural Scanner destroyed. Cmb. Airjet destroyed. Slug penetrates Wall. Map ----- +----------------------------------------------------+ | | | | | ????????????????????????????????????? | | ????????????????????????????????????? | | ????????????????????????????????????? | | ????????????????????????????????????? | | ????????????????????????????????????? | | ????????????????????????????????????? | | ????????????????????????????????????? | | ????????????????????????????????????? | | ????????????????????????????????????? | | ????????????????????????????????????? | | ????????????????????????????????????? | | ????????????????????????????????????? | | ????????????????????????????????????? | | ????????????????????????????????????? | | ??????????????????????#####?????????? | | ??????????????????????#####?????????? | | ??????????????????????# ##????????? | | ??????????????????????# < # ????????? | | ??????????????????????# # ????????? | | ??????????????????????# # ????????? | | ??????????????????????# # ????????? | | ??????????????????????# + ????????? | | ????????????????####### %# ????????? | | ????????????????#########@# ????????? | | ????????????????## ] ### # ??????? | | ????????????????## ##; ####??????? | | ????????????????## # ##??????? | | ????????????????## "% ##??????? | | ????????????????## " ##??????? | | ????????????????## # ######### | | ????????????????## !!# ######### | | ????????????????## !!## ##### # | | ????????????????## ## ##"""""""" | | ????????????????######## # " " | | ????????????????########w # "[ " | | ????????????????????####hYH;"" | | ???????????????????? # "= | | ???????????????????? # hY" | | ???????????????????? # # % | | ?????????????????? + + | | ??????????????? # # | | ???????????????"" "" # #] | | ????????????????" T" # # | | ##????????????????"? ## #" | | ####????????????? ## #" | | ####?????????????###### #" | | ????????????? ##/"""""" | | ???????????????? # # | +----------------------------------------------------+ Best States ------------- Heat Dissipation 31 Energy Generation 14 Energy Capacity 275 Matter Stores 340 Matter Capacity 350 Sight Range 18 Terrain Scan Range 14 Terrain Scan Density 10 Armor Coverage 150 Utility Shielding 66 Evasion (%) 62 Offensive Hacking 10 Item Schematics ----------------- None Robot Schematics ------------------ None Fabricated ------------ Nothing Alien Tech Used ----------------- None Achievements -------------- Part-time Mechanic Challenges ------------ None Game ------ Seed MinesnifferSurveybotLaser Manual? 0 Play Time 00:57:18 Cumulative 6.4 hours Start 2024.04.03 @ 18:05:11 End 2024.04.03 @ 19:31:55 Sessions 1 Manual Loads 0 Difficulty Rogue Special Mode None Game No. 8 Rogue 7 Adventurer 1 Explorer 0 Win Type - Total 0 Types 0/0/0/0/0/0/0/0/0 Lore% 11 Gallery% 7 Achievement% 6 Wizard Run 0 Options --------- Layout 1 ASCII 0 Keyboard 0 Movement Numpad Keybinds 0 Fullscreen 2 Font 24/Smallcaps Map View 50x35 Zoom Use 0% Tactical HUD 0 Map Filters NONE Filters NONE Steam 1 RUN: 8e2d4c33-c763-4899-8901-dfcbf10b44b6